Workbook

Sheet Worksheet
C1: Express each function in wave equation form as shown
A2: Variables | C2: 1 | D2: Express | F2: 2 | G2: sin | H2: x | I2: + | J2: 5 | K2: cos | L2: x | N2: in the form | O2: ksin(x – a) | P2: where 0 ≤ a < | Q2: 360° | S2: 6 | T2: Express | V2: 3 | W2: sin | X2: x | Y2: – | Z2: 10 | AA2: cos | AB2: x | AD2: in the form | AE2: ksin(x + a) | AF2: where 0 ≤ a < | AG2: 360°
A3: SHOW ANSWERS | B3: FALSE | I3: kcosa= | J3: 2 | M3: ksina= | N3: –5 | Y3: kcosa= | Z3: 3 | AC3: ksina= | AD3: 10
A4: Units | H4: k | I4: = | J4: 5.385 | L4: a | M4: = | N4: 291.801° | X4: k | Y4: = | Z4: 10.44 | AB4: a | AC4: = | AD4: 73.301°
A5: Degrees | B5: 3 | I5: = | J5: √29 | N5: 68.19859051 | Y5: = | Z5: √109 | AD5: 73.30075577
A6: Radians
A7: Mixture of degrees and radians
A8: Types of question to include:
A9: Choose order of sin/cos to match? | B9: TRUE | C9: 2 | D9: Express | F9: 3 | G9: cos | H9: x | I9: + | J9: 4 | K9: sin | L9: x | N9: in the form | O9: kcos(x – a) | P9: where 0 ≤ a < | Q9: 360° | S9: 7 | T9: Express | V9: 4 | W9: sin | X9: x | Y9: – | Z9: 6 | AA9: cos | AB9: x | AD9: in the form | AE9: ksin(x – a) | AF9: where 0 ≤ a < | AG9: 360°
A10: First coefficient always positive? | B10: TRUE | I10: kcosa= | J10: 4 | M10: ksina= | N10: –3 | Y10: kcosa= | Z10: 4 | AC10: ksina= | AD10: 6
A11: ksin(x + a) | B11: TRUE | H11: k | I11: = | J11: 5 | L11: a | M11: = | N11: 323.13° | X11: k | Y11: = | Z11: 7.211 | AB11: a | AC11: = | AD11: 56.31°
A12: ksin(x – a) | B12: TRUE | N12: 36.86989765 | Y12: = | Z12: √52 | AD12: 56.30993247
A13: kcos(x + a) | B13: TRUE
A14: kcos(x – a) | B14: TRUE
A15: =IF(COUNTIF(B11:B14,TRUE)=0,"ERROR: You must select one!","") -> 
A16: Answers | C16: 3 | D16: Express | F16: 5 | G16: cos | H16: x | I16: + | J16: 8 | K16: sin | L16: x | N16: in the form | O16: kcos(x – a) | P16: where 0 ≤ a < | Q16: 360° | S16: 8 | T16: Express | V16: 5 | W16: cos | X16: x | Y16: – | Z16: 8 | AA16: sin | AB16: x | AD16: in the form | AE16: kcos(x – a) | AF16: where 0 ≤ a < | AG16: 2π
A17: Number of decimal places to round answers for angle to | B17: 3 | I17: kcosa= | J17: 8 | M17: ksina= | N17: –5 | Y17: kcosa= | Z17: –8 | AC17: ksina= | AD17: –5
H18: k | I18: = | J18: 9.434 | L18: a | M18: = | N18: 327.995° | X18: k | Y18: = | Z18: 9.434 | AB18: a | AC18: = | AD18: 3.7
I19: = | J19: √89 | N19: 32.00538321 | Y19: = | Z19: √89 | AD19: 0.5585993153
C23: 4 | D23: Express | F23: 4 | G23: sin | H23: x | I23: – | J23: 9 | K23: cos | L23: x | N23: in the form | O23: ksin(x – a) | P23: where 0 ≤ a < | Q23: 360° | S23: 9 | T23: Express | V23: 8 | W23: sin | X23: x | Y23: – | Z23: 5 | AA23: cos | AB23: x | AD23: in the form | AE23: ksin(x + a) | AF23: where 0 ≤ a < | AG23: 360°
I24: kcosa= | J24: 4 | M24: ksina= | N24: 9 | Y24: kcosa= | Z24: 8 | AC24: ksina= | AD24: 5
H25: k | I25: = | J25: 9.849 | L25: a | M25: = | N25: 66.038° | X25: k | Y25: = | Z25: 9.434 | AB25: a | AC25: = | AD25: 32.005°
I26: = | J26: √97 | N26: 66.03751103 | Y26: = | Z26: √89 | AD26: 32.00538321
C30: 5 | D30: Express | F30: 7 | G30: sin | H30: x | I30: – | J30: 4 | K30: cos | L30: x | N30: in the form | O30: ksin(x – a) | P30: where 0 ≤ a < | Q30: 2π | S30: 10 | T30: Express | V30: 4 | W30: cos | X30: x | Y30: – | Z30: 3 | AA30: sin | AB30: x | AD30: in the form | AE30: kcos(x – a) | AF30: where 0 ≤ a < | AG30: 2π
I31: kcosa= | J31: 7 | M31: ksina= | N31: 4 | Y31: kcosa= | Z31: –3 | AC31: ksina= | AD31: –4
H32: k | I32: = | J32: 8.062 | L32: a | M32: = | N32: 0.519 | X32: k | Y32: = | Z32: 5 | AB32: a | AC32: = | AD32: 4.069
I33: = | J33: √65 | N33: 0.5191461142 | AD33: 0.927295218

Sheet SYSTEM FORMULAE
M1: =IF(Worksheet!$B11,Worksheet!$A11,"") -> ksin(x + a) | N1: =IF(M1="",IF(M2="",IF(M3="",M4,M3),M2),M1) -> ksin(x + a)
M2: =IF(Worksheet!$B12,Worksheet!$A12,"") -> ksin(x – a) | N2: =IF(O4=1,"",IF(O4=4,M2,IF(O4=2,IF(M4<>"",M4,IF(M3<>"",M3,M2)),IF(N1=M2,M3,IF(N1=M1,IF(M2="",M3,M2)))))) -> ksin(x – a)
M3: =IF(Worksheet!$B13,Worksheet!$A13,"") -> kcos(x + a) | N3: =IF(O4=4,M3,IF(O4=3,IF(M4="",M3,M4))) -> kcos(x + a)
M4: =IF(Worksheet!$B14,Worksheet!$A14,"") -> kcos(x – a) | N4: =IF(O4=4,M4,"") -> kcos(x – a) | O4: =4-COUNTBLANK(M1:M4) -> 4
A6: 1 | B6: Express | C6: =IF(D6<0,"–","") ->  | D6: =RANDBETWEEN(1,10)*(-1)^RANDBETWEEN(IF(Worksheet!$B$10,2,1),2) -> 2 | E6: =IF(Worksheet!$B$9,IF(LEFT(M6,2)="ks","sin","cos"),CHOOSE(RANDBETWEEN(1,2),"sin","cos")) -> cos | F6: x | G6: =IF(H6<0,"–","+") -> + | H6: =RANDBETWEEN(1,10)*(-1)^RANDBETWEEN(1,2) -> 3 | I6: =IF(E6="cos","sin","cos") -> sin | J6: x | L6: in the form | M6: =CHOOSE(RANDBETWEEN(1,$O$4),$N$1,$N$2,$N$3,$N$4) -> kcos(x + a) | N6: where 0 ≤ a < | O6: =IF(Worksheet!$B$5=1,"360°",IF(Worksheet!$B$5=2,"2π",CHOOSE(RANDBETWEEN(1,2),"360°","2π"))) -> 2π | Q6: 6 | R6: Express | S6: =IF(T6<0,"–","") ->  | T6: =RANDBETWEEN(1,10)*(-1)^RANDBETWEEN(IF(Worksheet!$B$10,2,1),2) -> 9 | U6: =IF(LEFT(AC6,2)="ks","sin","cos") -> sin | V6: x | W6: =IF(X6<0,"–","+") -> – | X6: =RANDBETWEEN(1,10)*(-1)^RANDBETWEEN(1,2) -> -10 | Y6: =IF(U6="cos","sin","cos") -> cos | Z6: x | AB6: in the form | AC6: =CHOOSE(RANDBETWEEN(1,$O$4),$N$1,$N$2,$N$3,$N$4) -> ksin(x – a) | AD6: where 0 ≤ a < | AE6: =IF(Worksheet!$B$5=1,"360°",IF(Worksheet!$B$5=2,"2π",CHOOSE(RANDBETWEEN(1,2),"360°","2π"))) -> 360°
G7: kcosa= | H7: =IF(OR(M6="kcos(x+a)",M6="kcos(x–a)"),IF(E6="cos",D6,H6),IF(E6="sin",D6,H6)) -> 3 | K7: ksina= | L7: =IF(M6="kcos(x+a)",IF(E6="sin",-1*D6,-1*H6),IF(M6="ksin(x+a)",IF(E6="cos",D6,H6),IF(M6="kcos(x–a)",IF(E6="sin",D6,H6),IF(E6="cos",-1*D6,-1*H6)))) -> -2 | W7: kcosa= | X7: =IF(OR(AC6="kcos(x+a)",AC6="kcos(x–a)"),IF(U6="cos",T6,X6),IF(U6="sin",T6,X6)) -> 9 | AA7: ksina= | AB7: =IF(AC6="kcos(x+a)",IF(U6="sin",-1*T6,-1*X6),IF(AC6="ksin(x+a)",IF(U6="cos",T6,X6),IF(AC6="kcos(x–a)",IF(U6="sin",T6,X6),IF(U6="cos",-1*T6,-1*X6)))) -> 10
F8: k | G8: = | H8: =ROUND(SQRT(H7^2+L7^2),Worksheet!$B$17) -> 3.606 | J8: a | K8: = | L8: =CONCATENATE(IF(O6="360°",ROUND(IF(AND(L7>0,H7>0),L9,IF(AND(L7>0,H7<0),180-L9,IF(AND(L7<0,H7<0),180+L9,360-L9))),Worksheet!$B$17),ROUND(IF(AND(L7>0,H7>0),L9,IF(AND(L7>0,H7<0),PI()-L9,IF(AND(L7<0,H7<0),PI()+L9,2*PI()-L9))),Worksheet!$B$17)),IF(O6="360°","°","")) -> 5.695 | V8: k | W8: = | X8: =ROUND(SQRT(X7^2+AB7^2),Worksheet!$B$17) -> 13.454 | Z8: a | AA8: = | AB8: =CONCATENATE(IF(AE6="360°",ROUND(IF(AND(AB7>0,X7>0),AB9,IF(AND(AB7>0,X7<0),180-AB9,IF(AND(AB7<0,X7<0),180+AB9,360-AB9))),Worksheet!$B$17),ROUND(IF(AND(AB7>0,X7>0),AB9,IF(AND(AB7>0,X7<0),PI()-AB9,IF(AND(AB7<0,X7<0),PI()+AB9,2*PI()-AB9))),Worksheet!$B$17)),IF(AE6="360°","°","")) -> 48.013°
G9: =IF(INT(H8)=H8,"","=") -> = | H9: =IF(INT(H8)=H8,"",CONCATENATE("√",H7^2+L7^2)) -> √13 | L9: =ABS(IF(O6="2π",ATAN(ABS(L7/H7)),DEGREES(ATAN(ABS(L7/H7))))) -> 0.5880026035 | W9: =IF(INT(X8)=X8,"","=") -> = | X9: =IF(INT(X8)=X8,"",CONCATENATE("√",X7^2+AB7^2)) -> √181 | AB9: =ABS(IF(AE6="2π",ATAN(ABS(AB7/X7)),DEGREES(ATAN(ABS(AB7/X7))))) -> 48.0127875
A13: 2 | B13: Express | C13: =IF(D13<0,"–","") ->  | D13: =RANDBETWEEN(1,10)*(-1)^RANDBETWEEN(IF(Worksheet!$B$10,2,1),2) -> 10 | E13: =IF(LEFT(M13,2)="ks","sin","cos") -> sin | F13: x | G13: =IF(H13<0,"–","+") -> – | H13: =RANDBETWEEN(1,10)*(-1)^RANDBETWEEN(1,2) -> -8 | I13: =IF(E13="cos","sin","cos") -> cos | J13: x | L13: in the form | M13: =CHOOSE(RANDBETWEEN(1,$O$4),$N$1,$N$2,$N$3,$N$4) -> ksin(x – a) | N13: where 0 ≤ a < | O13: =IF(Worksheet!$B$5=1,"360°",IF(Worksheet!$B$5=2,"2π",CHOOSE(RANDBETWEEN(1,2),"360°","2π"))) -> 360° | Q13: 7 | R13: Express | S13: =IF(T13<0,"–","") ->  | T13: =RANDBETWEEN(1,10)*(-1)^RANDBETWEEN(IF(Worksheet!$B$10,2,1),2) -> 5 | U13: =IF(LEFT(AC13,2)="ks","sin","cos") -> cos | V13: x | W13: =IF(X13<0,"–","+") -> – | X13: =RANDBETWEEN(1,10)*(-1)^RANDBETWEEN(1,2) -> -10 | Y13: =IF(U13="cos","sin","cos") -> sin | Z13: x | AB13: in the form | AC13: =CHOOSE(RANDBETWEEN(1,$O$4),$N$1,$N$2,$N$3,$N$4) -> kcos(x + a) | AD13: where 0 ≤ a < | AE13: =IF(Worksheet!$B$5=1,"360°",IF(Worksheet!$B$5=2,"2π",CHOOSE(RANDBETWEEN(1,2),"360°","2π"))) -> 2π
G14: kcosa= | H14: =IF(OR(M13="kcos(x+a)",M13="kcos(x–a)"),IF(E13="cos",D13,H13),IF(E13="sin",D13,H13)) -> 10 | K14: ksina= | L14: =IF(M13="kcos(x+a)",IF(E13="sin",-1*D13,-1*H13),IF(M13="ksin(x+a)",IF(E13="cos",D13,H13),IF(M13="kcos(x–a)",IF(E13="sin",D13,H13),IF(E13="cos",-1*D13,-1*H13)))) -> 8 | W14: kcosa= | X14: =IF(OR(AC13="kcos(x+a)",AC13="kcos(x–a)"),IF(U13="cos",T13,X13),IF(U13="sin",T13,X13)) -> -10 | AA14: ksina= | AB14: =IF(AC13="kcos(x+a)",IF(U13="sin",-1*T13,-1*X13),IF(AC13="ksin(x+a)",IF(U13="cos",T13,X13),IF(AC13="kcos(x–a)",IF(U13="sin",T13,X13),IF(U13="cos",-1*T13,-1*X13)))) -> -5
F15: k | G15: = | H15: =ROUND(SQRT(H14^2+L14^2),Worksheet!$B$17) -> 12.806 | J15: a | K15: = | L15: =CONCATENATE(IF(O13="360°",ROUND(IF(AND(L14>0,H14>0),L16,IF(AND(L14>0,H14<0),180-L16,IF(AND(L14<0,H14<0),180+L16,360-L16))),Worksheet!$B$17),ROUND(IF(AND(L14>0,H14>0),L16,IF(AND(L14>0,H14<0),PI()-L16,IF(AND(L14<0,H14<0),PI()+L16,2*PI()-L16))),Worksheet!$B$17)),IF(O13="360°","°","")) -> 38.66° | V15: k | W15: = | X15: =ROUND(SQRT(X14^2+AB14^2),Worksheet!$B$17) -> 11.18 | Z15: a | AA15: = | AB15: =CONCATENATE(IF(AE13="360°",ROUND(IF(AND(AB14>0,X14>0),AB16,IF(AND(AB14>0,X14<0),180-AB16,IF(AND(AB14<0,X14<0),180+AB16,360-AB16))),Worksheet!$B$17),ROUND(IF(AND(AB14>0,X14>0),AB16,IF(AND(AB14>0,X14<0),PI()-AB16,IF(AND(AB14<0,X14<0),PI()+AB16,2*PI()-AB16))),Worksheet!$B$17)),IF(AE13="360°","°","")) -> 3.605
G16: =IF(INT(H15)=H15,"","=") -> = | H16: =IF(INT(H15)=H15,"",CONCATENATE("√",H14^2+L14^2)) -> √164 | L16: =ABS(IF(O13="2π",ATAN(ABS(L14/H14)),DEGREES(ATAN(ABS(L14/H14))))) -> 38.65980825 | W16: =IF(INT(X15)=X15,"","=") -> = | X16: =IF(INT(X15)=X15,"",CONCATENATE("√",X14^2+AB14^2)) -> √125 | AB16: =ABS(IF(AE13="2π",ATAN(ABS(AB14/X14)),DEGREES(ATAN(ABS(AB14/X14))))) -> 0.463647609
A20: 3 | B20: Express | C20: =IF(D20<0,"–","") ->  | D20: =RANDBETWEEN(1,10)*(-1)^RANDBETWEEN(IF(Worksheet!$B$10,2,1),2) -> 8 | E20: =IF(LEFT(M20,2)="ks","sin","cos") -> cos | F20: x | G20: =IF(H20<0,"–","+") -> + | H20: =RANDBETWEEN(1,10)*(-1)^RANDBETWEEN(1,2) -> 5 | I20: =IF(E20="cos","sin","cos") -> sin | J20: x | L20: in the form | M20: =CHOOSE(RANDBETWEEN(1,$O$4),$N$1,$N$2,$N$3,$N$4) -> kcos(x + a) | N20: where 0 ≤ a < | O20: =IF(Worksheet!$B$5=1,"360°",IF(Worksheet!$B$5=2,"2π",CHOOSE(RANDBETWEEN(1,2),"360°","2π"))) -> 360° | Q20: 8 | R20: Express | S20: =IF(T20<0,"–","") ->  | T20: =RANDBETWEEN(1,10)*(-1)^RANDBETWEEN(IF(Worksheet!$B$10,2,1),2) -> 2 | U20: =IF(LEFT(AC20,2)="ks","sin","cos") -> cos | V20: x | W20: =IF(X20<0,"–","+") -> – | X20: =RANDBETWEEN(1,10)*(-1)^RANDBETWEEN(1,2) -> -9 | Y20: =IF(U20="cos","sin","cos") -> sin | Z20: x | AB20: in the form | AC20: =CHOOSE(RANDBETWEEN(1,$O$4),$N$1,$N$2,$N$3,$N$4) -> kcos(x + a) | AD20: where 0 ≤ a < | AE20: =IF(Worksheet!$B$5=1,"360°",IF(Worksheet!$B$5=2,"2π",CHOOSE(RANDBETWEEN(1,2),"360°","2π"))) -> 2π
G21: kcosa= | H21: =IF(OR(M20="kcos(x+a)",M20="kcos(x–a)"),IF(E20="cos",D20,H20),IF(E20="sin",D20,H20)) -> 5 | K21: ksina= | L21: =IF(M20="kcos(x+a)",IF(E20="sin",-1*D20,-1*H20),IF(M20="ksin(x+a)",IF(E20="cos",D20,H20),IF(M20="kcos(x–a)",IF(E20="sin",D20,H20),IF(E20="cos",-1*D20,-1*H20)))) -> -8 | W21: kcosa= | X21: =IF(OR(AC20="kcos(x+a)",AC20="kcos(x–a)"),IF(U20="cos",T20,X20),IF(U20="sin",T20,X20)) -> -9 | AA21: ksina= | AB21: =IF(AC20="kcos(x+a)",IF(U20="sin",-1*T20,-1*X20),IF(AC20="ksin(x+a)",IF(U20="cos",T20,X20),IF(AC20="kcos(x–a)",IF(U20="sin",T20,X20),IF(U20="cos",-1*T20,-1*X20)))) -> -2
F22: k | G22: = | H22: =ROUND(SQRT(H21^2+L21^2),Worksheet!$B$17) -> 9.434 | J22: a | K22: = | L22: =CONCATENATE(IF(O20="360°",ROUND(IF(AND(L21>0,H21>0),L23,IF(AND(L21>0,H21<0),180-L23,IF(AND(L21<0,H21<0),180+L23,360-L23))),Worksheet!$B$17),ROUND(IF(AND(L21>0,H21>0),L23,IF(AND(L21>0,H21<0),PI()-L23,IF(AND(L21<0,H21<0),PI()+L23,2*PI()-L23))),Worksheet!$B$17)),IF(O20="360°","°","")) -> 302.005° | V22: k | W22: = | X22: =ROUND(SQRT(X21^2+AB21^2),Worksheet!$B$17) -> 9.22 | Z22: a | AA22: = | AB22: =CONCATENATE(IF(AE20="360°",ROUND(IF(AND(AB21>0,X21>0),AB23,IF(AND(AB21>0,X21<0),180-AB23,IF(AND(AB21<0,X21<0),180+AB23,360-AB23))),Worksheet!$B$17),ROUND(IF(AND(AB21>0,X21>0),AB23,IF(AND(AB21>0,X21<0),PI()-AB23,IF(AND(AB21<0,X21<0),PI()+AB23,2*PI()-AB23))),Worksheet!$B$17)),IF(AE20="360°","°","")) -> 3.36
G23: =IF(INT(H22)=H22,"","=") -> = | H23: =IF(INT(H22)=H22,"",CONCATENATE("√",H21^2+L21^2)) -> √89 | L23: =ABS(IF(O20="2π",ATAN(ABS(L21/H21)),DEGREES(ATAN(ABS(L21/H21))))) -> 57.99461679 | W23: =IF(INT(X22)=X22,"","=") -> = | X23: =IF(INT(X22)=X22,"",CONCATENATE("√",X21^2+AB21^2)) -> √85 | AB23: =ABS(IF(AE20="2π",ATAN(ABS(AB21/X21)),DEGREES(ATAN(ABS(AB21/X21))))) -> 0.2186689459
A27: 4 | B27: Express | C27: =IF(D27<0,"–","") ->  | D27: =RANDBETWEEN(1,10)*(-1)^RANDBETWEEN(IF(Worksheet!$B$10,2,1),2) -> 6 | E27: =IF(LEFT(M27,2)="ks","sin","cos") -> sin | F27: x | G27: =IF(H27<0,"–","+") -> + | H27: =RANDBETWEEN(1,10)*(-1)^RANDBETWEEN(1,2) -> 2 | I27: =IF(E27="cos","sin","cos") -> cos | J27: x | L27: in the form | M27: =CHOOSE(RANDBETWEEN(1,$O$4),$N$1,$N$2,$N$3,$N$4) -> ksin(x + a) | N27: where 0 ≤ a < | O27: =IF(Worksheet!$B$5=1,"360°",IF(Worksheet!$B$5=2,"2π",CHOOSE(RANDBETWEEN(1,2),"360°","2π"))) -> 2π | Q27: 9 | R27: Express | S27: =IF(T27<0,"–","") ->  | T27: =RANDBETWEEN(1,10)*(-1)^RANDBETWEEN(IF(Worksheet!$B$10,2,1),2) -> 10 | U27: =IF(LEFT(AC27,2)="ks","sin","cos") -> cos | V27: x | W27: =IF(X27<0,"–","+") -> – | X27: =RANDBETWEEN(1,10)*(-1)^RANDBETWEEN(1,2) -> -1 | Y27: =IF(U27="cos","sin","cos") -> sin | Z27: x | AB27: in the form | AC27: =CHOOSE(RANDBETWEEN(1,$O$4),$N$1,$N$2,$N$3,$N$4) -> kcos(x + a) | AD27: where 0 ≤ a < | AE27: =IF(Worksheet!$B$5=1,"360°",IF(Worksheet!$B$5=2,"2π",CHOOSE(RANDBETWEEN(1,2),"360°","2π"))) -> 2π
G28: kcosa= | H28: =IF(OR(M27="kcos(x+a)",M27="kcos(x–a)"),IF(E27="cos",D27,H27),IF(E27="sin",D27,H27)) -> 6 | K28: ksina= | L28: =IF(M27="kcos(x+a)",IF(E27="sin",-1*D27,-1*H27),IF(M27="ksin(x+a)",IF(E27="cos",D27,H27),IF(M27="kcos(x–a)",IF(E27="sin",D27,H27),IF(E27="cos",-1*D27,-1*H27)))) -> -2 | W28: kcosa= | X28: =IF(OR(AC27="kcos(x+a)",AC27="kcos(x–a)"),IF(U27="cos",T27,X27),IF(U27="sin",T27,X27)) -> -1 | AA28: ksina= | AB28: =IF(AC27="kcos(x+a)",IF(U27="sin",-1*T27,-1*X27),IF(AC27="ksin(x+a)",IF(U27="cos",T27,X27),IF(AC27="kcos(x–a)",IF(U27="sin",T27,X27),IF(U27="cos",-1*T27,-1*X27)))) -> -10
F29: k | G29: = | H29: =ROUND(SQRT(H28^2+L28^2),Worksheet!$B$17) -> 6.325 | J29: a | K29: = | L29: =CONCATENATE(IF(O27="360°",ROUND(IF(AND(L28>0,H28>0),L30,IF(AND(L28>0,H28<0),180-L30,IF(AND(L28<0,H28<0),180+L30,360-L30))),Worksheet!$B$17),ROUND(IF(AND(L28>0,H28>0),L30,IF(AND(L28>0,H28<0),PI()-L30,IF(AND(L28<0,H28<0),PI()+L30,2*PI()-L30))),Worksheet!$B$17)),IF(O27="360°","°","")) -> 5.961 | V29: k | W29: = | X29: =ROUND(SQRT(X28^2+AB28^2),Worksheet!$B$17) -> 10.05 | Z29: a | AA29: = | AB29: =CONCATENATE(IF(AE27="360°",ROUND(IF(AND(AB28>0,X28>0),AB30,IF(AND(AB28>0,X28<0),180-AB30,IF(AND(AB28<0,X28<0),180+AB30,360-AB30))),Worksheet!$B$17),ROUND(IF(AND(AB28>0,X28>0),AB30,IF(AND(AB28>0,X28<0),PI()-AB30,IF(AND(AB28<0,X28<0),PI()+AB30,2*PI()-AB30))),Worksheet!$B$17)),IF(AE27="360°","°","")) -> 4.613
G30: =IF(INT(H29)=H29,"","=") -> = | H30: =IF(INT(H29)=H29,"",CONCATENATE("√",H28^2+L28^2)) -> √40 | L30: =ABS(IF(O27="2π",ATAN(ABS(L28/H28)),DEGREES(ATAN(ABS(L28/H28))))) -> 0.3217505544 | W30: =IF(INT(X29)=X29,"","=") -> = | X30: =IF(INT(X29)=X29,"",CONCATENATE("√",X28^2+AB28^2)) -> √101 | AB30: =ABS(IF(AE27="2π",ATAN(ABS(AB28/X28)),DEGREES(ATAN(ABS(AB28/X28))))) -> 1.471127674
A34: 5 | B34: Express | C34: =IF(D34<0,"–","") ->  | D34: =RANDBETWEEN(1,10)*(-1)^RANDBETWEEN(IF(Worksheet!$B$10,2,1),2) -> 5 | E34: =IF(LEFT(M34,2)="ks","sin","cos") -> cos | F34: x | G34: =IF(H34<0,"–","+") -> + | H34: =RANDBETWEEN(1,10)*(-1)^RANDBETWEEN(1,2) -> 2 | I34: =IF(E34="cos","sin","cos") -> sin | J34: x | L34: in the form | M34: =CHOOSE(RANDBETWEEN(1,$O$4),$N$1,$N$2,$N$3,$N$4) -> kcos(x – a) | N34: where 0 ≤ a < | O34: =IF(Worksheet!$B$5=1,"360°",IF(Worksheet!$B$5=2,"2π",CHOOSE(RANDBETWEEN(1,2),"360°","2π"))) -> 2π | Q34: 10 | R34: Express | S34: =IF(T34<0,"–","") ->  | T34: =RANDBETWEEN(1,10)*(-1)^RANDBETWEEN(IF(Worksheet!$B$10,2,1),2) -> 9 | U34: =IF(LEFT(AC34,2)="ks","sin","cos") -> sin | V34: x | W34: =IF(X34<0,"–","+") -> + | X34: =RANDBETWEEN(1,10)*(-1)^RANDBETWEEN(1,2) -> 9 | Y34: =IF(U34="cos","sin","cos") -> cos | Z34: x | AB34: in the form | AC34: =CHOOSE(RANDBETWEEN(1,$O$4),$N$1,$N$2,$N$3,$N$4) -> ksin(x – a) | AD34: where 0 ≤ a < | AE34: =IF(Worksheet!$B$5=1,"360°",IF(Worksheet!$B$5=2,"2π",CHOOSE(RANDBETWEEN(1,2),"360°","2π"))) -> 2π
G35: kcosa= | H35: =IF(OR(M34="kcos(x+a)",M34="kcos(x–a)"),IF(E34="cos",D34,H34),IF(E34="sin",D34,H34)) -> 2 | K35: ksina= | L35: =IF(M34="kcos(x+a)",IF(E34="sin",-1*D34,-1*H34),IF(M34="ksin(x+a)",IF(E34="cos",D34,H34),IF(M34="kcos(x–a)",IF(E34="sin",D34,H34),IF(E34="cos",-1*D34,-1*H34)))) -> -5 | W35: kcosa= | X35: =IF(OR(AC34="kcos(x+a)",AC34="kcos(x–a)"),IF(U34="cos",T34,X34),IF(U34="sin",T34,X34)) -> 9 | AA35: ksina= | AB35: =IF(AC34="kcos(x+a)",IF(U34="sin",-1*T34,-1*X34),IF(AC34="ksin(x+a)",IF(U34="cos",T34,X34),IF(AC34="kcos(x–a)",IF(U34="sin",T34,X34),IF(U34="cos",-1*T34,-1*X34)))) -> -9
F36: k | G36: = | H36: =ROUND(SQRT(H35^2+L35^2),Worksheet!$B$17) -> 5.385 | J36: a | K36: = | L36: =CONCATENATE(IF(O34="360°",ROUND(IF(AND(L35>0,H35>0),L37,IF(AND(L35>0,H35<0),180-L37,IF(AND(L35<0,H35<0),180+L37,360-L37))),Worksheet!$B$17),ROUND(IF(AND(L35>0,H35>0),L37,IF(AND(L35>0,H35<0),PI()-L37,IF(AND(L35<0,H35<0),PI()+L37,2*PI()-L37))),Worksheet!$B$17)),IF(O34="360°","°","")) -> 5.093 | V36: k | W36: = | X36: =ROUND(SQRT(X35^2+AB35^2),Worksheet!$B$17) -> 12.728 | Z36: a | AA36: = | AB36: =CONCATENATE(IF(AE34="360°",ROUND(IF(AND(AB35>0,X35>0),AB37,IF(AND(AB35>0,X35<0),180-AB37,IF(AND(AB35<0,X35<0),180+AB37,360-AB37))),Worksheet!$B$17),ROUND(IF(AND(AB35>0,X35>0),AB37,IF(AND(AB35>0,X35<0),PI()-AB37,IF(AND(AB35<0,X35<0),PI()+AB37,2*PI()-AB37))),Worksheet!$B$17)),IF(AE34="360°","°","")) -> 5.498
G37: =IF(INT(H36)=H36,"","=") -> = | H37: =IF(INT(H36)=H36,"",CONCATENATE("√",H35^2+L35^2)) -> √29 | L37: =ABS(IF(O34="2π",ATAN(ABS(L35/H35)),DEGREES(ATAN(ABS(L35/H35))))) -> 1.19028995 | W37: =IF(INT(X36)=X36,"","=") -> = | X37: =IF(INT(X36)=X36,"",CONCATENATE("√",X35^2+AB35^2)) -> √162 | AB37: =ABS(IF(AE34="2π",ATAN(ABS(AB35/X35)),DEGREES(ATAN(ABS(AB35/X35))))) -> 0.7853981634
